[Event "Live Chess"]
[Site "Chess.com"]
[Date "2023.05.21"]
[Round "-"]
[White "MartinWalker4"]
[Black "YrrriKharkiv"]
[Result "1-0"]
[WhiteElo "2069"]
[BlackElo "2063"]
[TimeControl "300"]
[EndTime "6:34:27 PDT"]
[Termination "MartinWalker4 won by resignation"]

1. e4 {[%clk 0:04:57]} 1... e6 {[%clk 0:04:57]} 2. d4 {[%clk 0:04:54.8]} 2... d5
{[%clk 0:04:56.5]} 3. Nd2 {[%clk 0:04:53.6]} 3... Nf6 {[%clk 0:04:55]} 4. e5
{[%clk 0:04:52.2]} 4... Nfd7 {[%clk 0:04:54]} 5. Bd3 {[%clk 0:04:50.9]} 5... c5
{[%clk 0:04:53.2]} 6. c3 {[%clk 0:04:50]} 6... Nc6 {[%clk 0:04:51.4]} 7. Ne2
{[%clk 0:04:49.1]} 7... f6 {[%clk 0:04:49.3]} 8. Nf4 {[%clk 0:04:44.9]} 8...
Ndxe5 {[%clk 0:04:44.9]} 9. dxe5 {[%clk 0:04:38.3]} 9... Nxe5 {[%clk 0:04:35.5]}
10. Nf3 {[%clk 0:04:12.2]} 10... Nf7 {[%clk 0:04:14.5]} 11. O-O {[%clk
0:04:02.5]} 11... Bd6 {[%clk 0:04:10.7]} 12. Bb5+ {[%clk 0:03:53.8]} 12... Kf8
{[%clk 0:04:05.7]} 13. Re1 {[%clk 0:03:50]} 13... Ne5 {[%clk 0:03:54.7]} 14.
Nxe5 {[%clk 0:03:35]} 14... Bxe5 {[%clk 0:03:43.8]} 15. Qh5 {[%clk 0:03:16.9]}
15... Ke7 {[%clk 0:03:20]} 16. Rxe5 {[%clk 0:03:05.5]} 16... fxe5 {[%clk
0:03:18.5]} 17. Qxe5 {[%clk 0:03:04.4]} 17... Rg8 {[%clk 0:03:06.8]} 18. Nxe6
{[%clk 0:02:57.1]} 18... Bxe6 {[%clk 0:02:58.9]} 19. Bg5+ {[%clk 0:02:54.6]}
19... Kf7 {[%clk 0:02:58.4]} 1-0

[Event "Live Chess"]
[Site "Chess.com"]
[Date "2023.05.21"]
[Round "-"]
[White "worldchessleaguelive"]
[Black "chessfiction"]
[Result "1/2-1/2"]
[WhiteElo "1372"]
[BlackElo "2315"]
[TimeControl "300"]
[EndTime "6:35:07 PDT"]
[Termination "Game drawn - timeout vs insufficient material"]

1. d4 {[%clk 0:04:58]} 1... d5 {[%clk 0:04:58.8]} 2. Bf4 {[%clk 0:04:55.6]} 2...
e5 {[%clk 0:04:57.4]} 3. Bxe5 {[%clk 0:04:53.2]} 3... Nc6 {[%clk 0:04:56.8]} 4.
Nf3 {[%clk 0:04:51.3]} 4... Bg4 {[%clk 0:04:55.4]} 5. Nbd2 {[%clk 0:04:48.2]}
5... Qe7 {[%clk 0:04:52.4]} 6. h3 {[%clk 0:04:46.7]} 6... Bh5 {[%clk 0:04:49.4]}
7. c3 {[%clk 0:04:40]} 7... O-O-O {[%clk 0:04:48.3]} 8. Qb3 {[%clk 0:04:37.4]}
8... f6 {[%clk 0:04:44]} 9. Bh2 {[%clk 0:04:30.6]} 9... Nh6 {[%clk 0:04:42.2]}
10. O-O-O {[%clk 0:04:28.5]} 10... Bg6 {[%clk 0:04:34.3]} 11. Nh4 {[%clk
0:04:21]} 11... Bf7 {[%clk 0:04:31.4]} 12. e3 {[%clk 0:04:16.8]} 12... f5 {[%clk
0:04:30.4]} 13. Bb5 {[%clk 0:04:12.6]} 13... Qxh4 {[%clk 0:04:28.5]} 14. Bxc6
{[%clk 0:04:11.4]} 14... bxc6 {[%clk 0:04:28]} 15. Qa4 {[%clk 0:04:08.8]} 15...
Kd7 {[%clk 0:04:24.8]} 16. Qxa7 {[%clk 0:04:06.6]} 16... Bd6 {[%clk 0:04:22.9]}
17. Nf3 {[%clk 0:03:57.4]} 17... Ra8 {[%clk 0:04:20.5]} 18. Qxa8 {[%clk
0:03:50.9]} 18... Qxf2 {[%clk 0:04:05.2]} 19. Qxh8 {[%clk 0:03:41.2]} 19...
Qxe3+ {[%clk 0:04:03.3]} 20. Kb1 {[%clk 0:03:35.6]} 20... f4 {[%clk 0:03:59.3]}
21. Ne5+ {[%clk 0:03:32.3]} 21... Bxe5 {[%clk 0:03:56.8]} 22. dxe5 {[%clk
0:03:31]} 22... Bg6+ {[%clk 0:03:55.8]} 23. Ka1 {[%clk 0:03:29.1]} 23... Nf5
{[%clk 0:03:51.1]} 24. Rhe1 {[%clk 0:03:22.5]} 24... Qf2 {[%clk 0:03:47]} 25.
e6+ {[%clk 0:03:18.7]} 25... Ke7 {[%clk 0:03:43.9]} 26. Qc8 {[%clk 0:03:12.4]}
26... Ne3 {[%clk 0:03:40.8]} 27. Qd7+ {[%clk 0:03:00]} 27... Kf6 {[%clk
0:03:39.8]} 28. Rxe3 {[%clk 0:02:44.1]} 28... fxe3 {[%clk 0:03:37.5]} 29. e7
{[%clk 0:02:33.8]} 29... e2 {[%clk 0:03:36.3]} 30. Qxc6+ {[%clk 0:02:14.7]}
30... Kxe7 {[%clk 0:03:34.6]} 31. Qxc7+ {[%clk 0:02:13.4]} 31... Ke8 {[%clk
0:03:28.2]} 32. Qe5+ {[%clk 0:02:08]} 32... Kf8 {[%clk 0:03:20]} 33. Qd6+ {[%clk
0:02:04.4]} 33... Ke8 {[%clk 0:03:15.4]} 34. Qc6+ {[%clk 0:01:59.4]} 34... Ke7
{[%clk 0:03:00.8]} 35. Bd6+ {[%clk 0:01:51]} 35... Ke6 {[%clk 0:02:58.4]} 36.
Qxd5+ {[%clk 0:01:46.6]} 36... Kf6 {[%clk 0:02:57]} 37. Be5+ {[%clk 0:01:32.7]}
37... Kg5 {[%clk 0:02:54]} 38. Bg3+ {[%clk 0:01:07.3]} 38... Qf5 {[%clk
0:02:52.2]} 39. Qxf5+ {[%clk 0:01:03]} 39... Bxf5 {[%clk 0:02:45.9]} 40. Re1
{[%clk 0:00:56.4]} 40... Bd3 {[%clk 0:02:29.4]} 41. a4 {[%clk 0:00:49.6]} 41...
h5 {[%clk 0:02:26.5]} 42. a5 {[%clk 0:00:46.9]} 42... h4 {[%clk 0:02:26]} 43.
Bf2 {[%clk 0:00:45.2]} 43... Kf5 {[%clk 0:02:23.5]} 44. Ka2 {[%clk 0:00:39.8]}
44... Ke4 {[%clk 0:02:22.4]} 45. Bxh4 {[%clk 0:00:37.4]} 45... Ke3 {[%clk
0:02:20.5]} 46. b4 {[%clk 0:00:32.8]} 46... Kd2 {[%clk 0:02:19.4]} 47. Rh1
{[%clk 0:00:26.4]} 47... Kxc3 {[%clk 0:02:11.5]} 48. Be1+ {[%clk 0:00:23.4]}
48... Kc4 {[%clk 0:02:03.9]} 49. h4 {[%clk 0:00:22.5]} 49... Kb5 {[%clk
0:02:00.5]} 50. h5 {[%clk 0:00:21.7]} 50... Bc4+ {[%clk 0:01:58.8]} 51. Kb2
{[%clk 0:00:19.8]} 51... Bd5 {[%clk 0:01:58.7]} 52. h6 {[%clk 0:00:18.1]} 52...
gxh6 {[%clk 0:01:55.5]} 53. Rxh6 {[%clk 0:00:17.4]} 53... Bxg2 {[%clk 0:01:55]}
54. Re6 {[%clk 0:00:14.7]} 54... Bf3 {[%clk 0:01:51.1]} 55. Kc3 {[%clk
0:00:14.1]} 55... Bg4 {[%clk 0:01:47.9]} 56. Kd2 {[%clk 0:00:13.6]} 56... Bxe6
{[%clk 0:01:46.6]} 57. Kxe2 {[%clk 0:00:11.7]} 57... Bc4+ {[%clk 0:01:45.6]} 58.
Ke3 {[%clk 0:00:11]} 58... Bd5 {[%clk 0:01:45.5]} 59. Kd4 {[%clk 0:00:10.3]}
59... Ba8 {[%clk 0:01:45.4]} 60. Bf2 {[%clk 0:00:07.4]} 60... Bb7 {[%clk
0:01:44.4]} 61. Kc3 {[%clk 0:00:06.6]} 61... Ba6 {[%clk 0:01:44.3]} 62. Bc5
{[%clk 0:00:05.8]} 62... Kc6 {[%clk 0:01:42.9]} 63. Kd4 {[%clk 0:00:05.1]} 63...
Kb5 {[%clk 0:01:42.3]} 64. Ke5 {[%clk 0:00:04.9]} 64... Bc8 {[%clk 0:01:42.1]}
65. Kd6 {[%clk 0:00:04.5]} 65... Ba6 {[%clk 0:01:41.4]} 66. Kc7 {[%clk
0:00:04.2]} 66... Ka4 {[%clk 0:01:39.3]} 67. Kb8 {[%clk 0:00:03.9]} 67... Kb5
{[%clk 0:01:38.2]} 68. Ka7 {[%clk 0:00:03.6]} 68... Bc8 {[%clk 0:01:37.3]} 69.
a6 {[%clk 0:00:02.3]} 69... Bf5 {[%clk 0:01:37.2]} 70. Kb7 {[%clk 0:00:01.2]}
70... Be4+ {[%clk 0:01:37.1]} 1/2-1/2

[Event "Live Chess"]
[Site "Chess.com"]
[Date "2023.05.21"]
[Round "-"]
[White "wadsy27"]
[Black "ms_lilley"]
[Result "1-0"]
[WhiteElo "2551"]
[BlackElo "604"]
[TimeControl "300"]
[EndTime "6:35:12 PDT"]
[Termination "wadsy27 won by checkmate"]

1. e4 {[%clk 0:04:58.6]} 1... e6 {[%clk 0:04:58.4]} 2. d4 {[%clk 0:04:57.2]}
2... d5 {[%clk 0:04:56.8]} 3. e5 {[%clk 0:04:56.7]} 3... c5 {[%clk 0:04:53.9]}
4. c3 {[%clk 0:04:55.9]} 4... c4 {[%clk 0:04:52.4]} 5. f4 {[%clk 0:04:51.7]}
5... Ne7 {[%clk 0:04:50.9]} 6. Nf3 {[%clk 0:04:50.9]} 6... Nf5 {[%clk
0:04:49.1]} 7. Be2 {[%clk 0:04:45.5]} 7... g6 {[%clk 0:04:47.4]} 8. O-O {[%clk
0:04:44.4]} 8... Be7 {[%clk 0:04:45.6]} 9. b3 {[%clk 0:04:37.2]} 9... O-O {[%clk
0:04:42.4]} 10. bxc4 {[%clk 0:04:32.5]} 10... b6 {[%clk 0:04:32.9]} 11. cxd5
{[%clk 0:04:29.1]} 11... Qxd5 {[%clk 0:04:28.4]} 12. Ng5 {[%clk 0:04:21.9]}
12... Bxg5 {[%clk 0:04:23.5]} 13. fxg5 {[%clk 0:04:20.7]} 13... Na6 {[%clk
0:04:15.6]} 14. Bf3 {[%clk 0:04:19.5]} 14... Qb5 {[%clk 0:03:50.4]} 15. Bxa8
{[%clk 0:04:17.6]} 15... Qxf1+ {[%clk 0:03:48.5]} 16. Qxf1 {[%clk 0:04:15.8]}
16... Nc7 {[%clk 0:03:46.6]} 17. Be4 {[%clk 0:04:14]} 17... Ba6 {[%clk
0:03:40.6]} 18. Qf2 {[%clk 0:04:12.6]} 18... Nb5 {[%clk 0:03:33.9]} 19. Bxf5
{[%clk 0:04:12]} 19... exf5 {[%clk 0:03:32.3]} 20. h4 {[%clk 0:04:10.6]} 20...
Nxc3 {[%clk 0:03:30.7]} 21. Nxc3 {[%clk 0:04:09.2]} 21... Bd3 {[%clk 0:03:27.7]}
22. h5 {[%clk 0:04:08]} 22... gxh5 {[%clk 0:03:21.2]} 23. Qh4 {[%clk 0:04:04.9]}
23... Rc8 {[%clk 0:03:05.1]} 24. Nd5 {[%clk 0:04:04.1]} 24... Rc2 {[%clk
0:03:01.6]} 25. Qxh5 {[%clk 0:04:02.5]} 25... Be2 {[%clk 0:02:55.4]} 26. Nf6+
{[%clk 0:04:01.8]} 26... Kf8 {[%clk 0:02:49.3]} 27. Ba3+ {[%clk 0:04:00.9]}
27... Kg7 {[%clk 0:02:43.2]} 28. Qh6+ {[%clk 0:04:00.2]} 28... Kh8 {[%clk
0:02:39.2]} 29. Qxh7# {[%clk 0:04:00.1]} 1-0

[Event "Live Chess"]
[Site "Chess.com"]
[Date "2023.05.21"]
[Round "-"]
[White "Ian-Morley"]
[Black "daveeeeR"]
[Result "0-1"]
[WhiteElo "1054"]
[BlackElo "1292"]
[TimeControl "300"]
[EndTime "6:35:14 PDT"]
[Termination "daveeeeR won by checkmate"]

1. b3 {[%clk 0:04:58.2]} 1... d5 {[%clk 0:04:57.4]} 2. Bb2 {[%clk 0:04:57.2]}
2... d4 {[%clk 0:04:55.6]} 3. c4 {[%clk 0:04:55.9]} 3... e5 {[%clk 0:04:52.1]}
4. e4 {[%clk 0:04:54.5]} 4... Bb4 {[%clk 0:04:48.5]} 5. a3 {[%clk 0:04:51.5]}
5... Bd6 {[%clk 0:04:43.6]} 6. b4 {[%clk 0:04:50.6]} 6... b6 {[%clk 0:04:41.5]}
7. c5 {[%clk 0:04:49.7]} 7... bxc5 {[%clk 0:04:40.3]} 8. bxc5 {[%clk 0:04:49]}
8... Bxc5 {[%clk 0:04:39.1]} 9. Qc2 {[%clk 0:04:45.1]} 9... Qd6 {[%clk
0:04:31.6]} 10. Bb5+ {[%clk 0:04:42.3]} 10... Bd7 {[%clk 0:04:29.2]} 11. Bxd7+
{[%clk 0:04:41.1]} 11... Nxd7 {[%clk 0:04:28.5]} 12. d3 {[%clk 0:04:26.8]} 12...
Qg6 {[%clk 0:04:26.7]} 13. g3 {[%clk 0:04:20.8]} 13... Ngf6 {[%clk 0:04:23.7]}
14. Ne2 {[%clk 0:04:18.4]} 14... O-O {[%clk 0:04:21.5]} 15. Nd2 {[%clk 0:04:13]}
15... Qh5 {[%clk 0:04:12.5]} 16. Nc4 {[%clk 0:04:09.2]} 16... Qf3 {[%clk
0:04:03.8]} 17. O-O-O {[%clk 0:04:05.4]} 17... Ng4 {[%clk 0:03:53.1]} 18. a4
{[%clk 0:03:55.9]} 18... Qf6 {[%clk 0:03:50.5]} 19. Ba3 {[%clk 0:03:54]} 19...
Qc6 {[%clk 0:03:43.4]} 20. Bxc5 {[%clk 0:03:52]} 20... Qxc5 {[%clk 0:03:39.9]}
21. Na3 {[%clk 0:03:49.8]} 21... Qxa3+ {[%clk 0:03:37.8]} 22. Qb2 {[%clk
0:03:45.5]} 22... Qxb2+ {[%clk 0:03:34.5]} 23. Kxb2 {[%clk 0:03:44.5]} 23...
Nxf2 {[%clk 0:03:33.8]} 24. Rc1 {[%clk 0:03:41.7]} 24... Nxh1 {[%clk 0:03:32.1]}
25. Rxh1 {[%clk 0:03:40.7]} 25... Rab8+ {[%clk 0:03:26.3]} 26. Ka3 {[%clk
0:03:38.9]} 26... a5 {[%clk 0:03:24.6]} 27. Nc1 {[%clk 0:03:37.3]} 27... Rb4
{[%clk 0:03:22.7]} 28. Nb3 {[%clk 0:03:35.7]} 28... Rfb8 {[%clk 0:03:21.6]} 29.
Rb1 {[%clk 0:03:33.9]} 29... Nc5 {[%clk 0:03:18.4]} 30. Nxc5 {[%clk 0:03:31.1]}
30... Rxb1 {[%clk 0:03:17.1]} 31. Nd7 {[%clk 0:03:30.1]} 31... Ra1# {[%clk
0:03:15.7]} 0-1

[Event "Live Chess"]
[Site "Chess.com"]
[Date "2023.05.21"]
[Round "-"]
[White "Tushinskiy"]
[Black "MarkLim1"]
[Result "1-0"]
[WhiteElo "2207"]
[BlackElo "1704"]
[TimeControl "300"]
[EndTime "6:35:17 PDT"]
[Termination "Tushinskiy won by resignation"]

1. d4 {[%clk 0:04:53.7]} 1... d5 {[%clk 0:04:59.1]} 2. c3 {[%clk 0:04:53.6]}
2... c5 {[%clk 0:04:57.1]} 3. Nf3 {[%clk 0:04:50.3]} 3... cxd4 {[%clk
0:04:56.2]} 4. cxd4 {[%clk 0:04:50.2]} 4... Nc6 {[%clk 0:04:55.6]} 5. Nc3 {[%clk
0:04:49.2]} 5... Nf6 {[%clk 0:04:54.8]} 6. Bf4 {[%clk 0:04:45.7]} 6... Bf5
{[%clk 0:04:53.8]} 7. e3 {[%clk 0:04:43.5]} 7... e6 {[%clk 0:04:52.7]} 8. Bg3
{[%clk 0:04:38.5]} 8... Bb4 {[%clk 0:04:50.6]} 9. Bd3 {[%clk 0:04:32.9]} 9...
Bxd3 {[%clk 0:04:48.7]} 10. Qxd3 {[%clk 0:04:28.6]} 10... Ne4 {[%clk 0:04:47.9]}
11. O-O {[%clk 0:04:26.8]} 11... Nxg3 {[%clk 0:04:45.4]} 12. hxg3 {[%clk
0:04:25.6]} 12... O-O {[%clk 0:04:44.6]} 13. Rac1 {[%clk 0:04:24.4]} 13... Rc8
{[%clk 0:04:43]} 14. a3 {[%clk 0:04:21.6]} 14... Bd6 {[%clk 0:04:37]} 15. Rc2
{[%clk 0:04:19.4]} 15... a6 {[%clk 0:04:34.3]} 16. Rfc1 {[%clk 0:04:17.4]} 16...
Qb6 {[%clk 0:04:31.5]} 17. b4 {[%clk 0:04:15.5]} 17... Na7 {[%clk 0:04:30.3]}
18. Na4 {[%clk 0:04:11.5]} 18... Qb5 {[%clk 0:04:18.9]} 19. Qxb5 {[%clk
0:04:09.9]} 19... axb5 {[%clk 0:04:16.7]} 20. Rxc8 {[%clk 0:04:09.1]} 20... Rxc8
{[%clk 0:04:15.1]} 21. Rxc8+ {[%clk 0:04:07.8]} 21... Nxc8 {[%clk 0:04:14.2]}
22. Nc3 {[%clk 0:04:07.7]} 22... Na7 {[%clk 0:04:12.6]} 23. Kf1 {[%clk 0:04:07]}
23... Kf8 {[%clk 0:04:11]} 24. Ke2 {[%clk 0:04:05.4]} 24... h6 {[%clk
0:04:10.2]} 25. Kd3 {[%clk 0:04:04.8]} 25... Ke7 {[%clk 0:04:09.6]} 26. Nd2
{[%clk 0:04:02.5]} 26... Kd7 {[%clk 0:04:09]} 27. f4 {[%clk 0:04:01.9]} 27...
Kc7 {[%clk 0:04:06.9]} 28. Nb3 {[%clk 0:04:00.1]} 28... Kb6 {[%clk 0:04:05.2]}
29. Nc5 {[%clk 0:03:57.6]} 29... Nc6 {[%clk 0:03:54.2]} 30. e4 {[%clk
0:03:53.4]} 30... dxe4+ {[%clk 0:03:47.1]} 31. N3xe4 {[%clk 0:03:53.3]} 31...
Bc7 {[%clk 0:03:42.7]} 32. Nd7+ {[%clk 0:03:51]} 32... Ka7 {[%clk 0:03:37.1]}
33. Ne5 {[%clk 0:03:47.6]} 33... Nxe5+ {[%clk 0:03:29.4]} 34. fxe5 {[%clk
0:03:47.2]} 34... Kb6 {[%clk 0:03:28.1]} 35. g4 {[%clk 0:03:46]} 35... Bd8
{[%clk 0:03:24.9]} 36. Nd6 {[%clk 0:03:43.5]} 36... f6 {[%clk 0:03:22.1]} 37.
Ne8 {[%clk 0:03:41.5]} 37... fxe5 {[%clk 0:03:15.2]} 38. dxe5 {[%clk 0:03:41.4]}
38... g5 {[%clk 0:03:08.9]} 39. Ke4 {[%clk 0:03:40.2]} 39... Kc6 {[%clk
0:03:03.6]} 40. Nd6 {[%clk 0:03:37.3]} 40... Be7 {[%clk 0:02:59.9]} 41. Nf7
{[%clk 0:03:34.6]} 41... Bf8 {[%clk 0:02:58.7]} 42. Nd8+ {[%clk 0:03:33.7]}
42... Kd7 {[%clk 0:02:51.8]} 43. Nxb7 {[%clk 0:03:32.1]} 43... Kc6 {[%clk
0:02:50.8]} 44. Na5+ {[%clk 0:03:31.3]} 44... Kd7 {[%clk 0:02:46.4]} 45. Nb3
{[%clk 0:03:30]} 45... Be7 {[%clk 0:02:40.5]} 46. Nd4 {[%clk 0:03:28.8]} 1-0

[Event "Live Chess"]
[Site "Chess.com"]
[Date "2023.05.21"]
[Round "-"]
[White "elephantgerrald"]
[Black "JanMur7"]
[Result "0-1"]
[WhiteElo "686"]
[BlackElo "1968"]
[TimeControl "300"]
[EndTime "6:35:20 PDT"]
[Termination "JanMur7 won by checkmate"]

1. e4 {[%clk 0:04:57.4]} 1... e5 {[%clk 0:04:58.6]} 2. Nf3 {[%clk 0:04:56.3]}
2... Nc6 {[%clk 0:04:57.3]} 3. Bb5 {[%clk 0:04:54.7]} 3... Nf6 {[%clk
0:04:55.6]} 4. Bxc6 {[%clk 0:04:52.1]} 4... dxc6 {[%clk 0:04:53.7]} 5. Nxe5
{[%clk 0:04:50.2]} 5... Qd4 {[%clk 0:04:51.5]} 6. Nxc6 {[%clk 0:04:41.8]} 6...
Qxe4+ {[%clk 0:04:48]} 7. Qe2 {[%clk 0:04:38.9]} 7... Qxe2+ {[%clk 0:04:43.9]}
8. Kxe2 {[%clk 0:04:37.7]} 8... bxc6 {[%clk 0:04:43.8]} 9. Rf1 {[%clk
0:04:33.4]} 9... Ba6+ {[%clk 0:04:41.5]} 10. d3 {[%clk 0:04:31.1]} 10... Bd6
{[%clk 0:04:33.1]} 11. Re1 {[%clk 0:04:20.8]} 11... O-O {[%clk 0:04:31]} 12. Kf1
{[%clk 0:04:18.7]} 12... Rfe8 {[%clk 0:04:28.6]} 13. Rxe8+ {[%clk 0:04:06.8]}
13... Rxe8 {[%clk 0:04:26.1]} 14. Nc3 {[%clk 0:03:56.4]} 14... Bb4 {[%clk
0:04:23.9]} 15. Bd2 {[%clk 0:03:54.9]} 15... Bxc3 {[%clk 0:04:19.6]} 16. Bxc3
{[%clk 0:03:53.5]} 16... Nd5 {[%clk 0:04:19.5]} 17. Bb4 {[%clk 0:03:46.8]} 17...
Nxb4 {[%clk 0:04:18.1]} 18. Rd1 {[%clk 0:03:40.2]} 18... Nxc2 {[%clk 0:04:16.7]}
19. g3 {[%clk 0:03:34.5]} 19... Nb4 {[%clk 0:04:14.8]} 20. f4 {[%clk 0:03:30.6]}
20... Bxd3+ {[%clk 0:04:12.9]} 21. Kg2 {[%clk 0:03:27.2]} 21... h5 {[%clk
0:04:10.6]} 22. a3 {[%clk 0:03:24.3]} 22... Be4+ {[%clk 0:04:05.2]} 23. Kh3
{[%clk 0:03:22.2]} 23... Nd5 {[%clk 0:04:05.1]} 24. Re1 {[%clk 0:03:19.4]} 24...
Bf5+ {[%clk 0:04:02.7]} 25. g4 {[%clk 0:03:11.4]} 25... Rxe1 {[%clk 0:04:02.6]}
26. gxf5 {[%clk 0:03:10.3]} 26... Rg1 {[%clk 0:03:59.9]} 27. Kh4 {[%clk
0:03:09.2]} 27... Nxf4 {[%clk 0:03:58.1]} 28. b4 {[%clk 0:03:05.2]} 28... g5+
{[%clk 0:03:56.3]} 29. fxg6 {[%clk 0:02:00.8]} 29... fxg6 {[%clk 0:03:56.2]} 30.
a4 {[%clk 0:01:56.7]} 30... g5# {[%clk 0:03:56.1]} 0-1

[Event "Live Chess"]
[Site "Chess.com"]
[Date "2023.05.21"]
[Round "-"]
[White "OleksiyJr1"]
[Black "LordBenin"]
[Result "0-1"]
[WhiteElo "1002"]
[BlackElo "1388"]
[TimeControl "300"]
[EndTime "6:35:22 PDT"]
[Termination "LordBenin won by checkmate"]

1. e4 {[%clk 0:04:58]} 1... c6 {[%clk 0:04:58.6]} 2. Nf3 {[%clk 0:04:56.7]} 2...
d5 {[%clk 0:04:57.5]} 3. e5 {[%clk 0:04:56.6]} 3... Bg4 {[%clk 0:04:55.6]} 4. d4
{[%clk 0:04:56.5]} 4... e6 {[%clk 0:04:53.8]} 5. h3 {[%clk 0:04:55]} 5... Bh5
{[%clk 0:04:52.2]} 6. Nbd2 {[%clk 0:04:54.2]} 6... Nd7 {[%clk 0:04:50.7]} 7. Be2
{[%clk 0:04:53.8]} 7... c5 {[%clk 0:04:48.6]} 8. c3 {[%clk 0:04:47]} 8... cxd4
{[%clk 0:04:46.7]} 9. cxd4 {[%clk 0:04:46.9]} 9... Ne7 {[%clk 0:04:45.3]} 10.
Nf1 {[%clk 0:04:44.1]} 10... Nf5 {[%clk 0:04:41.4]} 11. Bg5 {[%clk 0:04:38.3]}
11... Be7 {[%clk 0:04:39.1]} 12. Bxe7 {[%clk 0:04:36.6]} 12... Nxe7 {[%clk
0:04:37.4]} 13. Ng3 {[%clk 0:04:34]} 13... Bg6 {[%clk 0:04:34.5]} 14. Bd3 {[%clk
0:04:31.4]} 14... a6 {[%clk 0:04:31.1]} 15. O-O {[%clk 0:04:29.2]} 15... O-O
{[%clk 0:04:29.1]} 16. Nh4 {[%clk 0:04:24.2]} 16... Bxd3 {[%clk 0:04:25.1]} 17.
Qxd3 {[%clk 0:04:22.8]} 17... Ng6 {[%clk 0:04:23.1]} 18. Nxg6 {[%clk 0:04:20.9]}
18... hxg6 {[%clk 0:04:22]} 19. b3 {[%clk 0:04:14.1]} 19... Rc8 {[%clk
0:04:20.4]} 20. Rac1 {[%clk 0:04:12.8]} 20... Qb6 {[%clk 0:04:17.5]} 21. Ne2
{[%clk 0:04:06.4]} 21... Qa5 {[%clk 0:04:04.4]} 22. Rc2 {[%clk 0:03:59.5]} 22...
b5 {[%clk 0:04:02]} 23. Rfc1 {[%clk 0:03:57.8]} 23... Rxc2 {[%clk 0:03:48.1]}
24. Rxc2 {[%clk 0:03:55.9]} 24... Qd8 {[%clk 0:03:44.7]} 25. g4 {[%clk 0:03:45]}
25... Nb6 {[%clk 0:03:40.3]} 26. Nf4 {[%clk 0:03:42.6]} 26... Qd7 {[%clk
0:03:36.3]} 27. Kg2 {[%clk 0:03:41.2]} 27... Rc8 {[%clk 0:03:34.6]} 28. h4
{[%clk 0:03:33.2]} 28... Rxc2 {[%clk 0:03:30.1]} 29. Qxc2 {[%clk 0:03:31.5]}
29... Qc8 {[%clk 0:03:18.9]} 30. Qxc8+ {[%clk 0:03:14.3]} 30... Nxc8 {[%clk
0:03:16.1]} 31. Nd3 {[%clk 0:03:13.7]} 31... Na7 {[%clk 0:03:00.8]} 32. Nc5
{[%clk 0:03:09.4]} 32... a5 {[%clk 0:02:59.4]} 33. a4 {[%clk 0:03:01.6]} 33...
bxa4 {[%clk 0:02:53.3]} 34. bxa4 {[%clk 0:03:01.5]} 34... Nc6 {[%clk 0:02:50.2]}
35. Nb7 {[%clk 0:03:00]} 35... Kf8 {[%clk 0:02:44.5]} 36. Kf3 {[%clk 0:02:56.1]}
36... Nxd4+ {[%clk 0:02:40.4]} 37. Ke3 {[%clk 0:02:55.6]} 37... Nc6 {[%clk
0:02:34.6]} 38. Kd3 {[%clk 0:02:54.1]} 38... Ke7 {[%clk 0:02:32.6]} 39. Kc3
{[%clk 0:02:50.2]} 39... Kd7 {[%clk 0:02:26.2]} 40. Nc5+ {[%clk 0:02:49.5]}
40... Kc7 {[%clk 0:02:21.3]} 41. f4 {[%clk 0:02:41.7]} 41... Nd8 {[%clk
0:02:00.4]} 42. Nb3 {[%clk 0:02:37.3]} 42... Kb6 {[%clk 0:01:55.7]} 43. Kd4
{[%clk 0:02:29.8]} 43... Nc6+ {[%clk 0:01:49.3]} 44. Kc3 {[%clk 0:02:28.8]}
44... Nb4 {[%clk 0:01:40.9]} 45. Kd4 {[%clk 0:02:22.4]} 45... Nc2+ {[%clk
0:01:37.1]} 46. Kc3 {[%clk 0:02:20.1]} 46... Ne3 {[%clk 0:01:34.4]} 47. g5
{[%clk 0:02:14.7]} 47... Ng2 {[%clk 0:01:31.7]} 48. Kd4 {[%clk 0:02:10]} 48...
Nxf4 {[%clk 0:01:27.2]} 49. Nc5 {[%clk 0:02:08.3]} 49... Ng2 {[%clk 0:01:21.4]}
50. Nd7+ {[%clk 0:02:07.1]} 50... Kc7 {[%clk 0:01:14.4]} 51. Nf8 {[%clk
0:01:52.9]} 51... Nxh4 {[%clk 0:01:11.6]} 52. Nh7 {[%clk 0:01:50.8]} 52... Kb6
{[%clk 0:01:01.6]} 53. Nf8 {[%clk 0:01:48.9]} 53... Nf3+ {[%clk 0:00:59.6]} 54.
Kd3 {[%clk 0:01:44.8]} 54... Nxe5+ {[%clk 0:00:57.3]} 55. Ke3 {[%clk 0:01:42.9]}
55... Kc5 {[%clk 0:00:52.3]} 56. Kf4 {[%clk 0:01:36.9]} 56... Nd3+ {[%clk
0:00:49.4]} 57. Ke3 {[%clk 0:01:35.8]} 57... Nb2 {[%clk 0:00:42.9]} 58. Nd7+
{[%clk 0:01:34.8]} 58... Kb4 {[%clk 0:00:40.6]} 59. Nb6 {[%clk 0:01:32.8]} 59...
Nxa4 {[%clk 0:00:39]} 60. Nc8 {[%clk 0:01:30.8]} 60... Nc5 {[%clk 0:00:32.7]}
61. Nd6 {[%clk 0:01:27.2]} 61... a4 {[%clk 0:00:31.5]} 62. Nxf7 {[%clk
0:01:26.5]} 62... a3 {[%clk 0:00:30.8]} 63. Ne5 {[%clk 0:01:25.7]} 63... a2
{[%clk 0:00:29.7]} 64. Nxg6 {[%clk 0:01:25.6]} 64... a1=Q {[%clk 0:00:27.3]} 65.
Nf4 {[%clk 0:01:24.8]} 65... Qe5+ {[%clk 0:00:24]} 66. Kf3 {[%clk 0:01:23.9]}
66... Qe4+ {[%clk 0:00:21.8]} 67. Kg4 {[%clk 0:01:22.9]} 67... e5 {[%clk
0:00:18.9]} 68. Kh5 {[%clk 0:01:18.8]} 68... Qxf4 {[%clk 0:00:17.7]} 69. g6
{[%clk 0:01:18.2]} 69... Qf5+ {[%clk 0:00:16.2]} 70. Kh4 {[%clk 0:01:17.3]}
70... Qxg6 {[%clk 0:00:15.6]} 71. Kh3 {[%clk 0:01:16.6]} 71... e4 {[%clk
0:00:15.1]} 72. Kh2 {[%clk 0:01:16.1]} 72... e3 {[%clk 0:00:14.5]} 73. Kh1
{[%clk 0:01:14.6]} 73... e2 {[%clk 0:00:14.4]} 74. Kh2 {[%clk 0:01:13.9]} 74...
e1=Q {[%clk 0:00:14.3]} 75. Kh3 {[%clk 0:01:13.2]} 75... Qh1# {[%clk 0:00:13.5]}
0-1